{"text_format":"1","workbook":"xlsx","n_sheets":5,"sheets":["FORMULARIO DE PEDIDO ","PEDIDO REALIZADOS ","BANCO DE CADASTRO","BANCO DE CODIGOS","PLANILHA DE PEDIDOS E PRODUTOS "],"not_rendered":{"charts":0,"images":1,"macros":1,"external_links":0,"defined_names":3,"comments":1,"pivot_tables":0},"unopened":[],"bounds":{"document_bytes":16777216,"sheet_cells":100000,"rows_first":2000,"rows_last":500,"rows_between":2000,"halvings":0,"cell_chars":16384,"cell_head_chars":4096},"cells_cut":0,"cells_raw":0,"read":"whole","date_system":"1900"}

{"sheet":"FORMULARIO DE PEDIDO ","index":0,"n_rows":22,"n_cols":11,"rows_kept":22,"cut":false,"hidden":false,"merged":[[22,7,22,8],[20,7,20,8],[21,7,21,8],[8,6,8,10],[10,9,10,10],[18,5,19,10],[1,4,5,11],[15,5,15,10],[12,5,12,10],[11,8,11,10],[9,6,9,8],[13,5,14,10]]}
[]
[]
[]
[]
[]
[]
[]
[null,null,null,null,null,"CODIGO ",null,null,null,null,{"$f":"VLOOKUP(K10,'BANCO DE CADASTRO'!A3:B4,2,0)","v":{"$error":"#N/A"}}]
[null,null,null,null,null,"RAZÃO SOCIAL:",{"$f":"IF(G8=\"\",\"\",VLOOKUP(G8,'BANCO DE CADASTRO'!A5:I230,2,0))","v":""}]
[null,null,null,null,null,"ENDEREÇO",{"$f":"IF(G8=\"\",\"\",VLOOKUP(G8,'BANCO DE CADASTRO'!A5:I230,6,0))","v":""},null,null,"CLASS. FISCAL ",{"$f":"IF(G8=\"\",\"\",VLOOKUP(G8,'BANCO DE CADASTRO'!A5:I230,3,0))","v":""}]
[null,null,null,null,null,"CIDADE",{"$f":"IF(G8=\"\",\"\",VLOOKUP(G8,'BANCO DE CADASTRO'!A5:I230,8,0))","v":""},null,"BAIRRO",{"$f":"IF(G8=\"\",\"\",VLOOKUP(G8,'BANCO DE CADASTRO'!A5:I230,7,0))","v":""}]
[null,null,null,null,null,"COD. PAG",{"$f":"IF(G8=\"\",\"\",VLOOKUP(G8,'BANCO DE CADASTRO'!A5:I230,9,0))","v":""},"CNPJ",{"$f":"IF(G8=\"\",\"\",VLOOKUP(G8,'BANCO DE CADASTRO'!A5:I230,5,0))","v":""}]
[null,null,null,null,null,"OBESERVAÇÕES "]
[]
[]
[null,null,null,null,null,"PRODUTOS"]
[null,null,null,null,null,"CODIGO",null,{"$f":"IF(G17=\"\",\"\",VLOOKUP(G17,'BANCO DE CODIGOS'!A5:B54,2,0))","v":""},null,null,{"$f":"IF(G17=\"\",\"\",VLOOKUP(G17,'BANCO DE CODIGOS'!A5:C54,3,0))","v":""}]
[null,null,null,null,null,null,"CX",null,"VALOR",null,{"$f":"K17*H18","v":{"$error":"#VALUE!"}}]
[]
[]
[null,null,null,null,null,"COD","QUANTIDADE ","PRODUTO ",null,"QTD. KG","VALOR "]
[null,null,null,null,null,{"$f":"G17","v":0},{"$f":"H18","v":0},{"$f":"H17","v":""},null,{"$f":"K18","v":{"$error":"#VALUE!"}},{"$f":"J18/K8","v":{"$error":"#N/A"}}]

{"sheet":"PEDIDO REALIZADOS ","index":1,"n_rows":20,"n_cols":4,"rows_kept":20,"cut":false,"hidden":false,"merged":[[1,0,1,3],[19,0,21,3],[2,0,3,3],[5,1,5,3]]}
[{"$f":"D8","v":""},{"$f":"IF(A1=\"\",\"\",VLOOKUP(ME,'BANCO DE CADASTRO'!A3:B4,2,0))","v":""}]
["PEDIDOS"]
["MANDACARU                                                                                                           REPRESENTAÇÕES"]
[]
["Representante: ","JOSÉ CARLOS","DATA :",{"$f":"NOW()","v":"2016-04-13T16:41:27.740"}]
["Razão Social:",{"$f":"'FORMULARIO DE PEDIDO '!G9","v":""}]
["Endereço:",{"$f":"'FORMULARIO DE PEDIDO '!G10","v":""}]
["Cidade:",{"$f":"'FORMULARIO DE PEDIDO '!G11","v":""},"CLAS. FISCAL ",{"$f":"'FORMULARIO DE PEDIDO '!K10","v":""}]
["CNPJ:",{"$f":"'FORMULARIO DE PEDIDO '!I12","v":""}]
["Cond. Prazo:",{"$f":"'FORMULARIO DE PEDIDO '!G12","v":""},"Nº do Pedido"]
["Quant. (cx)","Discriminação","Unitário (kg)","Peso KG"]
[{"$f":"'FORMULARIO DE PEDIDO '!H18","v":0},{"$f":"'FORMULARIO DE PEDIDO '!H17","v":""},{"$f":"'FORMULARIO DE PEDIDO '!K18","v":{"$error":"#VALUE!"}},{"$f":"'FORMULARIO DE PEDIDO '!J18/B1","v":{"$error":"#VALUE!"}}]
[]
[]
[]
[]
[]
[]
[]
[{"$f":"'FORMULARIO DE PEDIDO '!F14","v":0}]

{"sheet":"BANCO DE CADASTRO","index":2,"n_rows":15,"n_cols":9,"rows_kept":15,"cut":false,"hidden":false,"merged":[[0,0,1,8]]}
["RELAÇÃO DE CLIENTES CADASTRADO "]
[]
["ME",0.89249999999999996]
["NO",1]
["CÓD","RAZÃO SOCIAL ","CLASS. F","NOME FANTASIA","CNPJ","ENDEREÇO ","BAIRRO","CIDADE","COD. DE PAGAMENTO"]
[1,"GALERIA DOS PÃES COMERCIAL LTDA ","ME","GALERIA DOS PÃES ","10.787.855/0001-68","AV. PRAIA DE ITAPOAN - QD 19","VILAS DO ATLANTICO","LAURO DE FREITAS","21 DD BOLETO"]
[2,"DELITRIO DELICATESSEN LTDA ","ME","DELITRIO DELICATESSEN","22.181.560/0001-22","AV. PRAIA DE ITAPOAN ","VILAS DO ATLANTICO","LAURO DE FREITAS","28 DD BOLETO"]
[3,"TROPICALIA COMERCIO DE ALIMENTOS ","ME","TROPICALIA FRIOS ","10.601.530/0001-49","AV. JOANA ANGELICA - 633- LOJA 1","VALERIA","SALVADOR ","28 DD BOLETO"]
[10,"NEIVA BASTOS PEREIRA - ME","ME","FRIOS & CIA ","04.469.059/0001-84","TRAVESSA AMBROSIO","PERIPERI","SALVADOR ","21 / 28 DD BOLETO "]
[100,"BRUNO FERNANDES COSTA - ME ","ME","BRUNO FRIOS ","17.128.137/0001-29","TRAVESSA CAPITÃO EUGENIO","RIBEIRA","SALVADOR ","14 DD BOLETO "]
[200,"ALYSSON PAULINELLI DO SACRAMENTO SANTOS  ","NO","CASA SANTANA MIX ATACADO","03.669.745/0001-36","AV. SÃO SEBASTIÃO","CENTRO","SÃO SEBASTIÃO DO PASSE","21 DD BOLETO"]
[300,"QUEIJOMATT COMERCIO ATACADISTA ","NO","QUEIJOMATT","13.578.264/0001-79","RUA JOSE ROBERTO OTTONI - Nº 392","IAPI","SALVADOR ","21 / 28 DD BOLETO "]
[400,"ANTONIO LUIZ SANTANA LIMA ","ME",null,"11.690.007/0001-07","AV. ULYSSES GUIMARAES Nº 301","SUSSUARANA ","SALVADOR ","14 DD BOLETO "]
[1000,"RV RAMOS COMERCIO E TRANSPORTES LTDA ","NO","SOMAR SUPERMERCADO ","09.596.249/0001-86","AV. SÃO SEBASTIÃO ","CENTRO","SÃO SEBASTIÃO DO PASSE","21 DD BOLETO"]
[1100,"FABIANO DE JESUS BARBOSA - ME ","ME","CENTER FRIOS ","18.028.601/0004-10","RODOVIA BR 324- FEIRA KM 09","AGUAS CLARAS ","SALVADOR ","28 DD BOLETO"]

{"sheet":"BANCO DE CODIGOS","index":3,"n_rows":54,"n_cols":4,"rows_kept":54,"cut":false,"hidden":false,"merged":[[0,0,1,1]]}
["RELAÇÃO DE CLIENTES CADASTRADO "]
[]
["CÓD","PRODUTO ","KG"]
[null,"QUEIJOS"]
[2,"Mussarela 4 kgs",24,"KG"]
[1,"Mussarela 500gr",12,"KG"]
[6,"Prato 2,2 Kgs",17.600000000000001,"KG"]
[5,"Prato Mini Lanche 500 gr",12,"KG"]
[9,"Esférico  2 kg",8,"KG"]
[10,"Minas Padrão 500 gr",12,"KG"]
[25,"Queijo de Coalho  450 gr",8.1,"KG"]
[12,"Ricota  400 gr",9.6,"KG"]
[null,"QUEIJOS LIGHT"]
[4,"Mussarela Light 2,3 Kgs",18.399999999999999,"KG"]
[3,"Mussarela Light 500gr",12,"KG"]
[8,"Prato Light  2 Kgs",16.8,"KG"]
[7,"Prato Light 500gr",12,"KG"]
[11,"Minas Padrão Light 500 gr",12,"KG"]
[null,"QUEIJOS ZERO LACTOSE"]
[30,"Mussarela 500gr   S/ LACTOSE",12,"KG"]
[32,"Prato Mini Lanche   S/ LACTOSE",12,"KG"]
[34,"Minas Padrão 500 gr    S/ LACTOSE",12,"KG"]
[null,"QUEIJOS ZERO LACTOSE LIGHT"]
[31,"Mussarela Light 500gr   S/ LACTOSE",12,"KG"]
[33,"Prato Mini Lanche Light 500gr  S/ LAC",12,"KG"]
[35,"Minas Padrão Light 500 gr    S/ LAC",12,"KG"]
[null,"MANTEIGAS"]
[26,"Manteiga Premium 180 gr",2.16,"CX"]
[13,"Manteiga 200gr",12,"CX"]
[15,"Manteiga 500gr",12,"CX"]
[14,"Manteiga 200gr",4.8,"CX"]
[16,"Manteiga 500gr",6,"CX"]
[27,"Manteiga Balde   5 kg  (INDISPONÍVEL)",5,"CX"]
[28,"Manteiga Balde 10 kg   (INDISPONÍVEL)  ",10,"CX"]
[null,"REQUEIJÕES E CREMES"]
[17,"Requeijão Cremoso 200 gr",4,"CX"]
[18,"Requeijão Cremoso 200 gr",2,"CX"]
[19,"Requeijão Cremoso Light 200 gr",4,"CX"]
[20,"Requeijão Cremoso Light 200 gr",2,"CX"]
[21,"Queijo Processado Cheddar 200 gr",4,"CX"]
[22,"Queijo Processado Cheddar 200 gr",2,"CX"]
[23,"Creme de Ricota 180 gr",2.16,"CX"]
[24,"Creme de Minas Frescal 180 gr",2.16,"CX"]
[null,"REQUEIJÕES E CREMES CULINÁRIOS"]
[45,"Req. Crem. Culin. bisnaga 1,8 kg",7.2,"CX"]
[null,"Req. Crem Cul. Amido/GV bisnaga 1,8 kg",7.2,"CX"]
[41,"Creme de Ricota BISNAGA 1,8 kg",7.2,"CX"]
[49,"Queijo Proc. Ched Ami/GV bisn 1,8 kg",7.2,"CX"]
[null,"LEITES E COMPOSTO LÁCTEO"]
[51,"Leite em Pó desnatado  200 gr",10,"CX"]
[53,"Leite Pó desnatado  25 kg (granel)",25,"CX"]
[50,"Leite em Pó Integral  200 gr",10,"CX"]
[52,"Leite Pó Integral  25 kg (granel)",25,"CX"]
[54,"COMPOSTO LÁCTEO 200 gr  \"ESSENCIAL\"",10,"CX"]

{"sheet":"PLANILHA DE PEDIDOS E PRODUTOS ","index":4,"n_rows":7,"n_cols":7,"rows_kept":7,"cut":false,"hidden":false,"merged":[[4,3,5,3],[4,4,5,4],[4,5,5,5],[4,6,5,6],[0,0,2,6],[3,1,3,6],[4,2,5,2]]}
["MANDACARU "]
[]
[]
["VENDAS : ","1 ª SEMANA DE ABRIL 2016"]
["CLIENTE:",{"$f":"'FORMULARIO DE PEDIDO '!G9","v":""},"EMBAL.","CX","KG","VALOR ","TOTAL"]
["COD","PRODUTO"]
[{"$f":"'FORMULARIO DE PEDIDO '!G17","v":0},{"$f":"'FORMULARIO DE PEDIDO '!H17","v":""},{"$f":"VLOOKUP(A7,'BANCO DE CODIGOS'!A5:D54,4,0)","v":{"$error":"#N/A"}},{"$f":"'FORMULARIO DE PEDIDO '!H18","v":0},{"$f":"'FORMULARIO DE PEDIDO '!K18","v":{"$error":"#VALUE!"}},{"$f":"'FORMULARIO DE PEDIDO '!J18","v":0},{"$f":"IF(C7=\"CX\",(D7*F7),IF(C7=\"KG\",(F7*E7),0))","v":{"$error":"#N/A"}}]